[Event "Titled Tuesday Blitz March 07 Late 2023"]
[White "Dragomirescu, Angela"]
[Black "Almeida Quintana, Omar"]
[WhiteFideId "1209914"]
[BlackFideId "3503313"]
[WhiteElo "2171"]
[BlackElo "2530"]
[Result "1-0"]
[Round "10"]
[TimeControl "180+2"]
[Date "2023.03.07"]
[WhiteClock "0:00:20"]
[BlackClock "0:00:14"]

1. e4 {[%clk 0:03:00]}  d6 {[%clk 0:02:58]} 2. d4 {[%clk 0:03:00]}  Nf6 {[%clk 0:02:58]} 3. Nc3 {[%clk 0:03:01]}  e5 {[%clk 0:02:58]} 4. Nf3 {[%clk 0:03:01]}  Nbd7 {[%clk 0:02:58]} 5. Bc4 {[%clk 0:03:01]}  Be7 {[%clk 0:02:58]} 6. O-O {[%clk 0:03:01]}  O-O {[%clk 0:02:58]} 7. Re1 {[%clk 0:03:01]}  c6 {[%clk 0:02:58]} 8. a3 {[%clk 0:03:02]}  h6 {[%clk 0:02:54]} 9. a4 {[%clk 0:03:02]}  a5 {[%clk 0:02:54]} 10. h3 {[%clk 0:03:02]}  Re8 {[%clk 0:02:51]} 11. Be3 {[%clk 0:02:59]}  Rf8 {[%clk 0:02:51]} 12. Ba2 {[%clk 0:02:45]}  Qc7 {[%clk 0:02:47]} 13. Qd2 {[%clk 0:02:44]}  Kh7 {[%clk 0:02:40]} 14. Nh4 {[%clk 0:02:13]}  Nb8 {[%clk 0:02:28]} 15. Nf5 {[%clk 0:01:57]}  Bxf5 {[%clk 0:02:26]} 16. exf5 {[%clk 0:01:58]}  Na6 {[%clk 0:02:19]} 17. Qe2 {[%clk 0:01:51]}  Nb4 {[%clk 0:02:16]} 18. Bb3 {[%clk 0:01:50]}  Rae8 {[%clk 0:02:09]} 19. dxe5 {[%clk 0:01:47]}  dxe5 {[%clk 0:02:08]} 20. Qf3 {[%clk 0:01:44]}  b6 {[%clk 0:01:59]} 21. Rad1 {[%clk 0:01:42]}  Kg8 {[%clk 0:01:24]} 22. Ne4 {[%clk 0:01:25]}  Rd8 {[%clk 0:01:15]} 23. c3 {[%clk 0:01:18]}  Nbd5 {[%clk 0:01:08]} 24. Bc1 {[%clk 0:01:17]}  Rfe8 {[%clk 0:00:57]} 25. Qg3 {[%clk 0:01:09]}  Kf8 {[%clk 0:00:51]} 26. Qh4 {[%clk 0:00:49]}  Nxe4 {[%clk 0:00:47]} 27. Qxe4 {[%clk 0:00:50]}  Nf6 {[%clk 0:00:44]} 28. Qe2 {[%clk 0:00:39]}  Bc5 {[%clk 0:00:39]} 29. Rxd8 {[%clk 0:00:37]}  Qxd8 {[%clk 0:00:36]} 30. Rd1 {[%clk 0:00:35]}  Qc7 {[%clk 0:00:33]} 31. g3 {[%clk 0:00:31]}  e4 {[%clk 0:00:33]} 32. Bf4 {[%clk 0:00:30]}  Qe7 {[%clk 0:00:31]} 33. Kg2 {[%clk 0:00:30]}  e3 {[%clk 0:00:28]} 34. f3 {[%clk 0:00:29]}  Nh5 {[%clk 0:00:27]} 35. Qc4 {[%clk 0:00:19]}  e2 {[%clk 0:00:24]} 36. Re1 {[%clk 0:00:19]}  Nxf4+ {[%clk 0:00:23]} 37. Qxf4 {[%clk 0:00:20]}  Rd8 {[%clk 0:00:18]} 38. Qe4 {[%clk 0:00:18]}  Qxe4 {[%clk 0:00:18]} 39. fxe4 {[%clk 0:00:19]}  Rd2 {[%clk 0:00:18]} 40. Bc4 {[%clk 0:00:19]}  Rxb2 {[%clk 0:00:17]} 41. Rxe2 {[%clk 0:00:20]}  Rb1 {[%clk 0:00:18]} 42. Rc2 {[%clk 0:00:20]}  Re1 {[%clk 0:00:17]} 43. Bd3 {[%clk 0:00:19]}  Ra1 {[%clk 0:00:16]} 44. e5 {[%clk 0:00:18]}  Rxa4 {[%clk 0:00:15]} 45. f6 {[%clk 0:00:19]}  gxf6 {[%clk 0:00:15]} 46. exf6 {[%clk 0:00:19]}  Ra3 {[%clk 0:00:15]} 47. Be4 {[%clk 0:00:20]}  b5 {[%clk 0:00:14]} 48. Bxc6 {[%clk 0:00:20]}  Rb3 {[%clk 0:00:14]} 49. Re2 {[%clk 0:00:20]} 1-0


[Site "https://www.chess.com"]

[Event "Titled Tuesday Blitz March 07 Late 2023"]
[White "Wartiovaara, Oliver"]
[Black "Czernek, Tymon"]
[WhiteFideId "513024"]
[BlackFideId "1199510"]
[WhiteElo "2214"]
[BlackElo "2156"]
[Result "0-1"]
[Round "10"]
[TimeControl "180+2"]
[Date "2023.03.07"]
[WhiteClock "0:01:01"]
[BlackClock "0:01:41"]

1. d4 {[%clk 0:03:00]}  d5 {[%clk 0:02:56]} 2. c4 {[%clk 0:02:59]}  e6 {[%clk 0:02:57]} 3. Nc3 {[%clk 0:02:58]}  Nf6 {[%clk 0:02:57]} 4. cxd5 {[%clk 0:02:59]}  exd5 {[%clk 0:02:57]} 5. Bg5 {[%clk 0:02:58]}  Be7 {[%clk 0:02:57]} 6. e3 {[%clk 0:02:58]}  c6 {[%clk 0:02:57]} 7. Bd3 {[%clk 0:02:58]}  Nbd7 {[%clk 0:02:57]} 8. Nge2 {[%clk 0:02:56]}  Nf8 {[%clk 0:02:41]} 9. O-O {[%clk 0:02:33]}  Ne6 {[%clk 0:02:40]} 10. Bh4 {[%clk 0:02:31]}  O-O {[%clk 0:02:34]} 11. f3 {[%clk 0:02:24]}  g6 {[%clk 0:02:28]} 12. Qd2 {[%clk 0:02:18]}  Ne4 {[%clk 0:02:16]} 13. fxe4 {[%clk 0:02:07]}  Bxh4 {[%clk 0:02:15]} 14. e5 {[%clk 0:01:59]}  Bg5 {[%clk 0:02:06]} 15. Nf4 {[%clk 0:01:54]}  f6 {[%clk 0:01:58]} 16. exf6 {[%clk 0:01:44]}  Nxf4 {[%clk 0:01:49]} 17. exf4 {[%clk 0:01:37]}  Bxf6 {[%clk 0:01:49]} 18. Ne2 {[%clk 0:01:30]}  Qb6 {[%clk 0:01:44]} 19. Qc3 {[%clk 0:01:22]}  Bg4 {[%clk 0:01:43]} 20. Rad1 {[%clk 0:01:16]}  Rfe8 {[%clk 0:01:43]} 21. Rfe1 {[%clk 0:01:08]}  Re3 {[%clk 0:01:41]} 22. h3 {[%clk 0:01:01]}  Bxe2 {[%clk 0:01:41]} 0-1


[Site "https://www.chess.com"]

[Event "Titled Tuesday Blitz March 07 Late 2023"]
[White "Kleiman, Jake"]
[Black "Sai Han Thiha"]
[WhiteFideId "2020041"]
[BlackFideId "13012290"]
[WhiteElo "2492"]
[BlackElo "1954"]
[Result "1-0"]
[Round "10"]
[TimeControl "180+2"]
[Date "2023.03.07"]
[WhiteClock "0:00:15"]
[BlackClock "0:00:01"]

1. e4 {[%clk 0:03:00]}  c6 {[%clk 0:03:00]} 2. Nc3 {[%clk 0:03:00]}  d5 {[%clk 0:03:00]} 3. Nf3 {[%clk 0:03:01]}  Bg4 {[%clk 0:03:01]} 4. h3 {[%clk 0:02:55]}  Bxf3 {[%clk 0:03:00]} 5. Qxf3 {[%clk 0:02:56]}  e6 {[%clk 0:03:01]} 6. a3 {[%clk 0:02:56]}  Nd7 {[%clk 0:02:44]} 7. d3 {[%clk 0:02:54]}  g6 {[%clk 0:02:42]} 8. g3 {[%clk 0:02:54]}  Bg7 {[%clk 0:02:43]} 9. Bg2 {[%clk 0:02:54]}  Ne7 {[%clk 0:02:43]} 10. O-O {[%clk 0:02:55]}  O-O {[%clk 0:02:44]} 11. Qe2 {[%clk 0:02:56]}  b5 {[%clk 0:02:10]} 12. Bg5 {[%clk 0:02:54]}  Re8 {[%clk 0:02:03]} 13. Kh1 {[%clk 0:02:52]}  a5 {[%clk 0:01:57]} 14. Rae1 {[%clk 0:02:51]}  b4 {[%clk 0:01:48]} 15. axb4 {[%clk 0:02:47]}  axb4 {[%clk 0:01:47]} 16. Nd1 {[%clk 0:02:40]}  Nc5 {[%clk 0:01:15]} 17. Qe3 {[%clk 0:02:29]}  Na4 {[%clk 0:00:59]} 18. e5 {[%clk 0:01:56]}  Nf5 {[%clk 0:00:50]} 19. Qf4 {[%clk 0:01:54]}  Qc7 {[%clk 0:00:43]} 20. g4 {[%clk 0:01:13]}  h6 {[%clk 0:00:43]} 21. gxf5 {[%clk 0:01:05]}  hxg5 {[%clk 0:00:43]} 22. Qxg5 {[%clk 0:01:06]}  exf5 {[%clk 0:00:44]} 23. f4 {[%clk 0:01:03]}  Nc5 {[%clk 0:00:38]} 24. h4 {[%clk 0:00:55]}  Qe7 {[%clk 0:00:35]} 25. Qg3 {[%clk 0:00:55]}  Bh6 {[%clk 0:00:18]} 26. Rg1 {[%clk 0:00:53]}  Ne6 {[%clk 0:00:17]} 27. Ref1 {[%clk 0:00:52]}  Ra1 {[%clk 0:00:17]} 28. Ne3 {[%clk 0:00:48]}  Rxf1 {[%clk 0:00:15]} 29. Rxf1 {[%clk 0:00:49]}  Kh7 {[%clk 0:00:16]} 30. Bh3 {[%clk 0:00:41]}  Rg8 {[%clk 0:00:15]} 31. c3 {[%clk 0:00:31]}  bxc3 {[%clk 0:00:12]} 32. bxc3 {[%clk 0:00:32]}  Qc5 {[%clk 0:00:13]} 33. d4 {[%clk 0:00:29]}  Qxc3 {[%clk 0:00:09]} 34. Nxf5 {[%clk 0:00:29]}  Qxg3 {[%clk 0:00:10]} 35. Nxg3 {[%clk 0:00:30]}  Nxd4 {[%clk 0:00:10]} 36. h5 {[%clk 0:00:26]}  Rd8 {[%clk 0:00:07]} 37. hxg6+ {[%clk 0:00:26]}  fxg6 {[%clk 0:00:08]} 38. Bg4 {[%clk 0:00:23]}  Kg7 {[%clk 0:00:07]} 39. Kg2 {[%clk 0:00:22]}  Rf8 {[%clk 0:00:08]} 40. f5 {[%clk 0:00:22]}  gxf5 {[%clk 0:00:07]} 41. Bxf5 {[%clk 0:00:22]}  Nxf5 {[%clk 0:00:05]} 42. Nxf5+ {[%clk 0:00:22]}  Kg6 {[%clk 0:00:06]} 43. Ne7+ {[%clk 0:00:20]}  Kg5 {[%clk 0:00:06]} 44. Rc1 {[%clk 0:00:15]}  Re8 {[%clk 0:00:06]} 45. Nxc6 {[%clk 0:00:15]}  Kf5 {[%clk 0:00:05]} 46. Rf1+ {[%clk 0:00:15]}  Bf4 {[%clk 0:00:05]} 47. Kf3 {[%clk 0:00:14]}  Rc8 {[%clk 0:00:04]} 48. Ne7+ {[%clk 0:00:13]}  Kxe5 {[%clk 0:00:04]} 49. Nxc8 {[%clk 0:00:14]}  Bg5 {[%clk 0:00:05]} 50. Nb6 {[%clk 0:00:14]}  Bd8 {[%clk 0:00:04]} 51. Nxd5 {[%clk 0:00:13]}  Bg5 {[%clk 0:00:02]} 52. Rd1 {[%clk 0:00:14]}  Bh6 {[%clk 0:00:01]} 53. Ne3 {[%clk 0:00:14]}  Kf6 {[%clk 0:00:01]} 54. Rd5 {[%clk 0:00:15]} 1-0


[Site "https://www.chess.com"]

[Event "Titled Tuesday Blitz March 07 Late 2023"]
[White "Golubev, Mikhail"]
[Black "Poliakova, Varvara"]
[WhiteFideId "14100983"]
[BlackFideId "13518313"]
[WhiteElo "2374"]
[BlackElo "2075"]
[Result "0-1"]
[Round "10"]
[TimeControl "180+2"]
[Date "2023.03.07"]
[WhiteClock "0:00:06"]
[BlackClock "0:01:16"]

1. e4 {[%clk 0:03:00]}  e5 {[%clk 0:02:55]} 2. Nf3 {[%clk 0:03:00]}  Nc6 {[%clk 0:02:51]} 3. Bc4 {[%clk 0:03:00]}  Bc5 {[%clk 0:02:51]} 4. c3 {[%clk 0:02:59]}  Nf6 {[%clk 0:02:50]} 5. d4 {[%clk 0:03:00]}  exd4 {[%clk 0:02:48]} 6. cxd4 {[%clk 0:03:01]}  Bb4+ {[%clk 0:02:49]} 7. Nbd2 {[%clk 0:03:02]}  Nxe4 {[%clk 0:02:46]} 8. d5 {[%clk 0:03:01]}  Bxd2+ {[%clk 0:02:43]} 9. Bxd2 {[%clk 0:02:57]}  Ne7 {[%clk 0:02:41]} 10. Bb4 {[%clk 0:02:56]}  d6 {[%clk 0:02:40]} 11. O-O {[%clk 0:02:54]}  O-O {[%clk 0:02:38]} 12. Re1 {[%clk 0:02:54]}  f5 {[%clk 0:02:36]} 13. Nd4 {[%clk 0:02:48]}  Bd7 {[%clk 0:02:32]} 14. f3 {[%clk 0:02:35]}  Nf6 {[%clk 0:02:29]} 15. Ne6 {[%clk 0:02:30]}  Bxe6 {[%clk 0:02:28]} 16. Rxe6 {[%clk 0:02:27]}  Kh8 {[%clk 0:02:16]} 17. Bc3 {[%clk 0:02:26]}  Rf7 {[%clk 0:02:10]} 18. Qd4 {[%clk 0:02:21]}  Ng6 {[%clk 0:02:03]} 19. Rae1 {[%clk 0:02:09]}  f4 {[%clk 0:01:58]} 20. Bb3 {[%clk 0:02:00]}  Ne5 {[%clk 0:01:54]} 21. R1xe5 {[%clk 0:01:39]}  dxe5 {[%clk 0:01:53]} 22. Qxe5 {[%clk 0:01:37]}  Qf8 {[%clk 0:01:51]} 23. h4 {[%clk 0:01:26]}  a5 {[%clk 0:01:47]} 24. h5 {[%clk 0:01:18]}  a4 {[%clk 0:01:45]} 25. Bc2 {[%clk 0:01:11]}  Re8 {[%clk 0:01:44]} 26. Bxa4 {[%clk 0:01:02]}  Qc5+ {[%clk 0:01:41]} 27. Kh2 {[%clk 0:00:51]}  Rxe6 {[%clk 0:01:38]} 28. Qxe6 {[%clk 0:00:47]}  Qxd5 {[%clk 0:01:36]} 29. Qc8+ {[%clk 0:00:46]}  Ng8 {[%clk 0:01:33]} 30. h6 {[%clk 0:00:30]}  Qh5+ {[%clk 0:01:31]} 31. Kg1 {[%clk 0:00:29]}  Qxh6 {[%clk 0:01:27]} 32. Bb3 {[%clk 0:00:26]}  Qb6+ {[%clk 0:01:24]} 33. Kf1 {[%clk 0:00:24]}  Qb5+ {[%clk 0:01:21]} 34. Kf2 {[%clk 0:00:15]}  Qf5 {[%clk 0:01:17]} 35. Bxf7 {[%clk 0:00:11]}  Qxc8 {[%clk 0:01:15]} 36. Bxg7+ {[%clk 0:00:06]}  Kxg7 {[%clk 0:01:16]} 0-1


[Site "https://www.chess.com"]

[Event "Titled Tuesday Blitz March 07 Late 2023"]
[White "Womacka, Mathias"]
[Black "Gubajdullin, Alexei"]
[WhiteFideId "4611390"]
[BlackFideId "4141202"]
[WhiteElo "2377"]
[BlackElo "2267"]
[Result "1-0"]
[Round "10"]
[TimeControl "180+2"]
[Date "2023.03.07"]
[WhiteClock "0:00:30"]
[BlackClock "0:01:10"]

1. e4 {[%clk 0:02:56]}  g6 {[%clk 0:02:52]} 2. d4 {[%clk 0:02:55]}  Bg7 {[%clk 0:02:52]} 3. Nc3 {[%clk 0:02:55]}  d6 {[%clk 0:02:52]} 4. f4 {[%clk 0:02:55]}  c6 {[%clk 0:02:48]} 5. Be3 {[%clk 0:02:50]}  Qb6 {[%clk 0:02:48]} 6. Qd2 {[%clk 0:02:46]}  Qxb2 {[%clk 0:02:47]} 7. Rb1 {[%clk 0:02:46]}  Qa3 {[%clk 0:02:47]} 8. Nf3 {[%clk 0:02:45]}  Qa5 {[%clk 0:02:46]} 9. Bc4 {[%clk 0:02:33]}  e6 {[%clk 0:02:44]} 10. O-O {[%clk 0:02:25]}  Ne7 {[%clk 0:02:42]} 11. Qd3 {[%clk 0:02:09]}  O-O {[%clk 0:02:33]} 12. Ne2 {[%clk 0:02:02]}  d5 {[%clk 0:02:27]} 13. Bb3 {[%clk 0:01:57]}  dxe4 {[%clk 0:02:26]} 14. Qxe4 {[%clk 0:01:58]}  Nf5 {[%clk 0:02:25]} 15. Bf2 {[%clk 0:01:56]}  Nd7 {[%clk 0:02:24]} 16. c4 {[%clk 0:01:35]}  Nf6 {[%clk 0:02:23]} 17. Qc2 {[%clk 0:01:33]}  Qb5 {[%clk 0:02:23]} 18. cxb5 {[%clk 0:01:31]}  Bd7 {[%clk 0:02:09]} 19. bxc6 {[%clk 0:01:13]}  Bxc6 {[%clk 0:02:09]} 20. Ne5 {[%clk 0:01:14]}  Bd5 {[%clk 0:02:08]} 21. Bxd5 {[%clk 0:01:13]}  Nxd5 {[%clk 0:02:08]} 22. Rxb7 {[%clk 0:01:11]}  Nfe3 {[%clk 0:02:07]} 23. Bxe3 {[%clk 0:01:11]}  Nxe3 {[%clk 0:02:08]} 24. Qb3 {[%clk 0:01:08]}  Nxf1 {[%clk 0:02:07]} 25. Kxf1 {[%clk 0:01:08]}  Rac8 {[%clk 0:01:55]} 26. Rxa7 {[%clk 0:01:05]}  Rb8 {[%clk 0:01:38]} 27. Rb7 {[%clk 0:01:04]}  Ra8 {[%clk 0:01:35]} 28. a4 {[%clk 0:01:03]}  Ra5 {[%clk 0:01:27]} 29. Nxf7 {[%clk 0:00:54]}  Rd5 {[%clk 0:01:24]} 30. Ne5 {[%clk 0:00:47]}  Rc8 {[%clk 0:01:23]} 31. Rb8 {[%clk 0:00:44]}  Rxb8 {[%clk 0:01:19]} 32. Qxb8+ {[%clk 0:00:44]}  Bf8 {[%clk 0:01:20]} 33. Qc8 {[%clk 0:00:40]}  Rd6 {[%clk 0:01:19]} 34. a5 {[%clk 0:00:39]}  Kg7 {[%clk 0:01:16]} 35. a6 {[%clk 0:00:38]}  Be7 {[%clk 0:01:16]} 36. a7 {[%clk 0:00:37]}  Kh6 {[%clk 0:01:15]} 37. a8=Q {[%clk 0:00:35]}  Kh5 {[%clk 0:01:16]} 38. Qe8 {[%clk 0:00:33]}  Bf6 {[%clk 0:01:15]} 39. Qf3+ {[%clk 0:00:32]}  Kh6 {[%clk 0:01:13]} 40. Qf8+ {[%clk 0:00:30]}  Bg7 {[%clk 0:01:10]} 41. Qh3# {[%clk 0:00:30]} 1-0


[Site "https://www.chess.com"]

[Event "Titled Tuesday Blitz March 07 Late 2023"]
[White "Martinez Reyes, Pedro Ramon"]
[Black "Sreyas Payyappat"]
[WhiteFideId "3901807"]
[BlackFideId "46674969"]
[WhiteElo "2340"]
[BlackElo "2083"]
[Result "0-1"]
[Round "10"]
[TimeControl "180+2"]
[Date "2023.03.07"]
[WhiteClock "0:00:09"]
[BlackClock "0:00:05"]

1. a3 {[%clk 0:03:00]}  e5 {[%clk 0:02:58]} 2. e3 {[%clk 0:03:00]}  d5 {[%clk 0:02:58]} 3. d4 {[%clk 0:03:01]}  exd4 {[%clk 0:02:57]} 4. Qxd4 {[%clk 0:02:59]}  c5 {[%clk 0:02:57]} 5. Qd1 {[%clk 0:02:59]}  Nc6 {[%clk 0:02:57]} 6. Nf3 {[%clk 0:03:00]}  Nf6 {[%clk 0:02:56]} 7. c4 {[%clk 0:03:00]}  Be6 {[%clk 0:02:54]} 8. cxd5 {[%clk 0:02:58]}  Bxd5 {[%clk 0:02:50]} 9. Nc3 {[%clk 0:02:58]}  Be6 {[%clk 0:02:48]} 10. Qa4 {[%clk 0:02:54]}  Be7 {[%clk 0:02:46]} 11. Bc4 {[%clk 0:02:53]}  Bd7 {[%clk 0:02:43]} 12. O-O {[%clk 0:02:48]}  O-O {[%clk 0:02:41]} 13. Qc2 {[%clk 0:02:38]}  Qc8 {[%clk 0:02:37]} 14. Rd1 {[%clk 0:02:37]}  Bg4 {[%clk 0:02:36]} 15. Be2 {[%clk 0:02:37]}  Qc7 {[%clk 0:02:31]} 16. Bd2 {[%clk 0:02:36]}  Rfd8 {[%clk 0:02:29]} 17. Be1 {[%clk 0:02:37]}  Ne5 {[%clk 0:02:28]} 18. Nxe5 {[%clk 0:02:32]}  Qxe5 {[%clk 0:02:29]} 19. h3 {[%clk 0:02:30]}  Bf5 {[%clk 0:02:22]} 20. Qb3 {[%clk 0:02:29]}  Bd6 {[%clk 0:02:20]} 21. Bf3 {[%clk 0:02:15]}  Qh2+ {[%clk 0:01:58]} 22. Kf1 {[%clk 0:02:15]}  Be6 {[%clk 0:01:43]} 23. Qa4 {[%clk 0:02:02]}  a6 {[%clk 0:01:32]} 24. Bxb7 {[%clk 0:01:52]}  Rab8 {[%clk 0:01:31]} 25. Qxa6 {[%clk 0:01:06]}  Rxb7 {[%clk 0:01:30]} 26. Rxd6 {[%clk 0:01:06]}  Qxd6 {[%clk 0:00:20]} 27. Qxb7 {[%clk 0:01:05]}  Qh2 {[%clk 0:00:18]} 28. Ke2 {[%clk 0:00:31]}  Bc4+ {[%clk 0:00:14]} 29. Kf3 {[%clk 0:00:31]}  g5 {[%clk 0:00:07]} 30. Qe7 {[%clk 0:00:27]}  g4+ {[%clk 0:00:06]} 31. hxg4 {[%clk 0:00:25]}  Rd6 {[%clk 0:00:06]} 32. Rd1 {[%clk 0:00:20]}  Re6 {[%clk 0:00:03]} 33. Rd8+ {[%clk 0:00:19]}  Kg7 {[%clk 0:00:04]} 34. Qf8+ {[%clk 0:00:15]}  Kg6 {[%clk 0:00:04]} 35. g3 {[%clk 0:00:11]}  Qh1+ {[%clk 0:00:04]} 36. Kf4 {[%clk 0:00:11]}  Re4+ {[%clk 0:00:04]} 37. Nxe4 {[%clk 0:00:09]}  Qxe4# {[%clk 0:00:05]} 0-1


[Site "https://www.chess.com"]

[Event "Titled Tuesday Blitz March 07 Late 2023"]
[White "Danielian, Vardan"]
[Black "Gasparyan, David"]
[WhiteFideId "13301594"]
[BlackFideId "13311980"]
[WhiteElo "2561"]
[BlackElo "2463"]
[Result "0-1"]
[Round "10"]
[TimeControl "180+2"]
[Date "2023.03.07"]
[WhiteClock "0:00:06"]
[BlackClock "0:01:16"]

1. d4 {[%clk 0:03:00]}  Nf6 {[%clk 0:02:59]} 2. c4 {[%clk 0:02:51]}  e6 {[%clk 0:02:56]} 3. Nf3 {[%clk 0:02:51]}  b6 {[%clk 0:02:56]} 4. e3 {[%clk 0:02:50]}  Bb7 {[%clk 0:02:56]} 5. Bd3 {[%clk 0:02:50]}  Ne4 {[%clk 0:02:52]} 6. O-O {[%clk 0:02:48]}  f5 {[%clk 0:02:52]} 7. b3 {[%clk 0:02:19]}  Bd6 {[%clk 0:02:48]} 8. Bb2 {[%clk 0:02:15]}  O-O {[%clk 0:02:47]} 9. Nbd2 {[%clk 0:02:01]}  Nxd2 {[%clk 0:02:47]} 10. Nxd2 {[%clk 0:01:39]}  Bxh2+ {[%clk 0:02:26]} 11. Kxh2 {[%clk 0:01:40]}  Qh4+ {[%clk 0:02:26]} 12. Kg1 {[%clk 0:01:39]}  Bxg2 {[%clk 0:02:26]} 13. Kxg2 {[%clk 0:01:38]}  Qg5+ {[%clk 0:02:20]} 14. Kh2 {[%clk 0:01:31]}  Rf6 {[%clk 0:02:20]} 15. Qf3 {[%clk 0:01:25]}  Rh6+ {[%clk 0:02:20]} 16. Qh3 {[%clk 0:01:25]}  Rxh3+ {[%clk 0:02:20]} 17. Kxh3 {[%clk 0:01:25]}  Nc6 {[%clk 0:02:04]} 18. Rg1 {[%clk 0:01:25]}  Qh5+ {[%clk 0:02:01]} 19. Kg2 {[%clk 0:01:24]}  Nb4 {[%clk 0:02:00]} 20. Bf1 {[%clk 0:01:08]}  Qg4+ {[%clk 0:01:38]} 21. Kh2 {[%clk 0:01:04]}  Qh4+ {[%clk 0:01:38]} 22. Kg2 {[%clk 0:01:01]}  Rf8 {[%clk 0:01:38]} 23. d5 {[%clk 0:01:01]}  f4 {[%clk 0:01:34]} 24. exf4 {[%clk 0:00:44]}  Rxf4 {[%clk 0:01:31]} 25. f3 {[%clk 0:00:43]}  Nc2 {[%clk 0:01:22]} 26. Bd4 {[%clk 0:00:06]}  Rxd4 {[%clk 0:01:16]} 0-1


[Site "https://www.chess.com"]

[Event "Titled Tuesday Blitz March 07 Late 2023"]
[White "Shapiro, Viktor"]
[Black "Vaglio Munoz, Jaime"]
[WhiteFideId "4175700"]
[BlackFideId "6500145"]
[WhiteElo "2152"]
[BlackElo "2199"]
[Result "1-0"]
[Round "10"]
[TimeControl "180+2"]
[Date "2023.03.07"]
[WhiteClock "0:00:22"]
[BlackClock "0:00:03"]

1. c4 {[%clk 0:03:00]}  b6 {[%clk 0:02:59]} 2. Nf3 {[%clk 0:02:59]}  Bb7 {[%clk 0:03:00]} 3. g3 {[%clk 0:02:59]}  Bxf3 {[%clk 0:03:00]} 4. exf3 {[%clk 0:02:59]}  c6 {[%clk 0:02:58]} 5. Bg2 {[%clk 0:02:59]}  e6 {[%clk 0:02:57]} 6. f4 {[%clk 0:02:57]}  Ne7 {[%clk 0:02:57]} 7. O-O {[%clk 0:02:57]}  g6 {[%clk 0:02:56]} 8. Nc3 {[%clk 0:02:57]}  d5 {[%clk 0:02:56]} 9. d4 {[%clk 0:02:40]}  Bg7 {[%clk 0:02:55]} 10. Be3 {[%clk 0:02:40]}  O-O {[%clk 0:02:55]} 11. Qe2 {[%clk 0:02:40]}  Nd7 {[%clk 0:02:52]} 12. Rfd1 {[%clk 0:02:34]}  Nf5 {[%clk 0:02:50]} 13. b4 {[%clk 0:02:32]}  a6 {[%clk 0:02:43]} 14. Rac1 {[%clk 0:02:31]}  b5 {[%clk 0:02:42]} 15. c5 {[%clk 0:02:16]}  a5 {[%clk 0:02:38]} 16. a3 {[%clk 0:02:16]}  axb4 {[%clk 0:02:38]} 17. axb4 {[%clk 0:02:17]}  h5 {[%clk 0:02:29]} 18. Nxb5 {[%clk 0:01:47]}  cxb5 {[%clk 0:02:27]} 19. Qxb5 {[%clk 0:01:47]}  Nf6 {[%clk 0:02:19]} 20. c6 {[%clk 0:01:44]}  Ng4 {[%clk 0:02:12]} 21. c7 {[%clk 0:01:40]}  Qc8 {[%clk 0:02:04]} 22. Rd3 {[%clk 0:01:37]}  Ngxe3 {[%clk 0:02:02]} 23. fxe3 {[%clk 0:01:37]}  Nxe3 {[%clk 0:02:03]} 24. Rxe3 {[%clk 0:01:37]}  Bxd4 {[%clk 0:02:03]} 25. Qd3 {[%clk 0:01:37]}  Bxe3+ {[%clk 0:01:53]} 26. Qxe3 {[%clk 0:01:37]}  Qb7 {[%clk 0:01:46]} 27. Qc5 {[%clk 0:01:37]}  Rfc8 {[%clk 0:01:27]} 28. b5 {[%clk 0:01:32]}  Ra5 {[%clk 0:01:27]} 29. Bf1 {[%clk 0:01:33]}  d4 {[%clk 0:01:19]} 30. Qxd4 {[%clk 0:01:30]}  Ra2 {[%clk 0:00:48]} 31. b6 {[%clk 0:01:08]}  Kh7 {[%clk 0:00:47]} 32. h3 {[%clk 0:00:43]}  h4 {[%clk 0:00:35]} 33. gxh4 {[%clk 0:00:40]}  Qf3 {[%clk 0:00:18]} 34. Rc3 {[%clk 0:00:39]}  Qb7 {[%clk 0:00:14]} 35. Rg3 {[%clk 0:00:25]}  Rca8 {[%clk 0:00:07]} 36. Bg2 {[%clk 0:00:24]}  Rxg2+ {[%clk 0:00:05]} 37. Rxg2 {[%clk 0:00:24]}  Ra2 {[%clk 0:00:03]} 38. Rxa2 {[%clk 0:00:22]} 1-0


[Site "https://www.chess.com"]

[Event "Titled Tuesday Blitz March 07 Late 2023"]
[White "Paszewski, Mateusz"]
[Black "Hoffmann, Asa"]
[WhiteFideId "1141058"]
[BlackFideId "2001470"]
[WhiteElo "2223"]
[BlackElo "2117"]
[Result "1-0"]
[Round "10"]
[TimeControl "180+2"]
[Date "2023.03.07"]
[WhiteClock "0:00:27"]
[BlackClock "0:00:32"]

1. d4 {[%clk 0:03:00]}  Nf6 {[%clk 0:02:58]} 2. c4 {[%clk 0:02:59]}  c5 {[%clk 0:02:57]} 3. d5 {[%clk 0:02:59]}  e5 {[%clk 0:02:57]} 4. Nc3 {[%clk 0:02:59]}  d6 {[%clk 0:02:56]} 5. e4 {[%clk 0:02:59]}  Be7 {[%clk 0:02:56]} 6. Be2 {[%clk 0:02:57]}  Nbd7 {[%clk 0:02:55]} 7. Nf3 {[%clk 0:02:57]}  Nf8 {[%clk 0:02:55]} 8. h4 {[%clk 0:02:56]}  h6 {[%clk 0:02:49]} 9. h5 {[%clk 0:02:54]}  N6h7 {[%clk 0:02:47]} 10. Be3 {[%clk 0:02:50]}  a6 {[%clk 0:02:46]} 11. Nh2 {[%clk 0:02:48]}  Bg5 {[%clk 0:02:45]} 12. Qd2 {[%clk 0:02:46]}  Bxe3 {[%clk 0:02:44]} 13. Qxe3 {[%clk 0:02:47]}  Qg5 {[%clk 0:02:42]} 14. Qxg5 {[%clk 0:02:44]}  Nxg5 {[%clk 0:02:41]} 15. Bg4 {[%clk 0:02:44]}  Nd7 {[%clk 0:02:37]} 16. g3 {[%clk 0:02:38]}  Nf6 {[%clk 0:02:36]} 17. Bxc8 {[%clk 0:02:37]}  Rxc8 {[%clk 0:02:35]} 18. f3 {[%clk 0:02:17]}  Nxh5 {[%clk 0:02:32]} 19. Kf2 {[%clk 0:02:18]}  Nf6 {[%clk 0:02:31]} 20. Ke3 {[%clk 0:02:12]}  Rb8 {[%clk 0:02:26]} 21. f4 {[%clk 0:02:09]}  Ngh7 {[%clk 0:02:18]} 22. fxe5 {[%clk 0:02:04]}  dxe5 {[%clk 0:02:17]} 23. Rab1 {[%clk 0:01:59]}  Nd7 {[%clk 0:02:07]} 24. Nf3 {[%clk 0:01:48]}  Nhf6 {[%clk 0:02:05]} 25. b4 {[%clk 0:01:45]}  O-O {[%clk 0:02:02]} 26. Nh4 {[%clk 0:01:34]}  cxb4 {[%clk 0:01:59]} 27. Rxb4 {[%clk 0:01:33]}  Nc5 {[%clk 0:01:57]} 28. Nf5 {[%clk 0:01:32]}  Rfe8 {[%clk 0:01:52]} 29. Rb6 {[%clk 0:01:30]}  Nfd7 {[%clk 0:01:49]} 30. Rb2 {[%clk 0:01:26]}  Nf8 {[%clk 0:01:32]} 31. g4 {[%clk 0:01:15]}  Ng6 {[%clk 0:01:27]} 32. g5 {[%clk 0:01:15]}  hxg5 {[%clk 0:01:19]} 33. Rbh2 {[%clk 0:01:14]}  Nh4 {[%clk 0:01:11]} 34. Nxh4 {[%clk 0:01:14]}  gxh4 {[%clk 0:01:11]} 35. Rxh4 {[%clk 0:01:14]}  g6 {[%clk 0:01:08]} 36. d6 {[%clk 0:01:07]}  Kg7 {[%clk 0:01:07]} 37. Rh7+ {[%clk 0:01:05]}  Kf6 {[%clk 0:01:04]} 38. Nd5+ {[%clk 0:00:49]}  Ke6 {[%clk 0:01:04]} 39. Nc7+ {[%clk 0:00:49]}  Kxd6 {[%clk 0:01:04]} 40. Nxe8+ {[%clk 0:00:49]}  Rxe8 {[%clk 0:01:03]} 41. Rxf7 {[%clk 0:00:50]}  Ne6 {[%clk 0:01:00]} 42. Rxb7 {[%clk 0:00:47]}  Nd4 {[%clk 0:01:00]} 43. Rb6+ {[%clk 0:00:45]}  Kc5 {[%clk 0:01:00]} 44. Rxa6 {[%clk 0:00:44]}  Rf8 {[%clk 0:01:00]} 45. Ra5+ {[%clk 0:00:43]}  Kxc4 {[%clk 0:00:56]} 46. Rc1+ {[%clk 0:00:37]}  Kb4 {[%clk 0:00:55]} 47. Rxe5 {[%clk 0:00:35]}  Nf3 {[%clk 0:00:48]} 48. Rf1 {[%clk 0:00:30]}  Nxe5 {[%clk 0:00:41]} 49. Rxf8 {[%clk 0:00:29]}  Nc4+ {[%clk 0:00:37]} 50. Kd4 {[%clk 0:00:29]}  Nd2 {[%clk 0:00:35]} 51. Rb8+ {[%clk 0:00:29]}  Ka3 {[%clk 0:00:34]} 52. e5 {[%clk 0:00:28]}  g5 {[%clk 0:00:33]} 53. e6 {[%clk 0:00:28]}  Nf3+ {[%clk 0:00:32]} 54. Kd5 {[%clk 0:00:27]} 1-0


[Site "https://www.chess.com"]